fUSD/lending_fUSD_20251213
["ID","MTS","AMOUNT","RATE_DAILY","PERIOD"]
[398401694,1765614638230,-666.0,0.00015629,2]
[398401695,1765614638240,-168.0,0.00015652,2]
[398401696,1765614638249,-188.88,0.00015652,2]
[398401697,1765614638259,-688.94394477,0.00015667,2]
[398401698,1765614638269,-6382.52131336,0.00015668,2]
[398401699,1765614638279,-20924.3901,0.0001573,2]
[398401700,1765614638289,-1000.0,0.0001573,2]
[398401701,1765614638299,-6843.86645507,0.00015739,2]
[398401702,1765614638309,-254.13,0.00015752,2]
[398401703,1765614638318,-168.0,0.00015767,2]
[398401704,1765614638328,-999.0,0.00015768,3]
[398401705,1765614638338,-168.0,0.00015771,2]
[398401707,1765614638348,-578.20924308,0.00015819,2]
[398401708,1765614638357,-500.0,0.00015819,2]
[398401711,1765614638367,-500.0,0.00015819,2]
[398401713,1765614638376,-1000.0,0.00015819,2]
[398401715,1765614638386,-500.0,0.00015819,2]
[398401716,1765614638396,-1000.0,0.00015819,2]
[398401717,1765614638406,-500.0,0.00015819,2]
[398401718,1765614638415,-1000.0,0.00015819,2]
[398401719,1765614638424,-500.0,0.00015819,2]
[398401720,1765614638434,-1000.0,0.00015819,2]
[398401721,1765614638443,-500.0,0.00015819,2]
[398401722,1765614638453,-1000.0,0.00015819,2]
[398401723,1765614638462,-500.0,0.00015819,2]
[398401724,1765614638472,-500.0,0.00015819,2]
[398401725,1765614638482,-500.0,0.00015819,2]
[398401726,1765614638493,-500.0,0.00015819,2]
[398401727,1765614638502,-500.0,0.00015819,2]
[398401728,1765614638512,-530.72270864,0.00015819,2]
[398401729,1765614638522,-151.0,0.00015819,2]
[398401730,1765614638531,-1000.0,0.00015819,2]
[398401731,1765614638542,-1000.0,0.00015819,2]
[398401732,1765614638551,-1000.0,0.00015819,2]
[398401733,1765614638561,-1000.0,0.00015819,2]
[398401734,1765614638570,-499.0,0.00015819,2]
[398401735,1765614638580,-1000.0,0.00015819,2]
[398401736,1765614638590,-1115.81912162,0.00015819,2]
[398401737,1765614638600,-322.83931656,0.00015819,2]
[398401738,1765614638610,-250.0,0.00015819,2]
[398401739,1765614638619,-250.0,0.00015819,2]
[398401740,1765614638630,-250.0,0.00015819,2]
[398401741,1765614638642,-250.0,0.00015819,2]
[398401742,1765614638652,-250.0,0.00015819,2]
[398401743,1765614638663,-250.0,0.00015819,2]
[398401744,1765614638672,-250.0,0.00015819,2]
[398401745,1765614638683,-250.0,0.00015819,2]
[398401746,1765614638692,-553.64373807,0.00015819,2]
[398401747,1765614638701,-300.0,0.00015819,2]
[398401748,1765614638711,-1000.0,0.00015819,2]
[398401749,1765614638723,-1000.0,0.00015819,2]
[398401750,1765614638733,-1000.0,0.00015819,2]
[398401751,1765614638742,-354.72935495,0.00015819,2]
[398401752,1765614638752,-200.0,0.00015819,2]
[398401753,1765614638761,-207.4,0.00015819,2]
[398401754,1765614638770,-215.0738,0.00015819,2]
[398401755,1765614638779,-223.0315306,0.00015819,2]
[398401756,1765614638789,-231.28369723,0.00015819,2]
[398401757,1765614638798,-239.84119403,0.00015819,2]
[398401758,1765614638807,-283.57733705,0.00015819,2]
[398401759,1765614638817,-541.05650327,0.00015829,2]
[398401760,1765614638827,-161.25906309,0.00015829,2]
[398401761,1765614638836,-500.0,0.00015829,2]
[398401762,1765614638845,-357.35795247,0.00015829,2]
[398401763,1765614638855,-507.72738807,0.00015829,2]
[398401764,1765614638865,-500.0,0.00015829,2]
[398401765,1765614638875,-500.0,0.00015829,2]
[398401766,1765614638884,-500.0,0.00015829,2]
[398401767,1765614638893,-184.52566928,0.00015829,2]
[398401768,1765614638903,-168.0,0.00015843,2]
[398401769,1765614638912,-168.0,0.00015844,2]
[398401770,1765614638922,-168.0,0.00015845,2]
[398401771,1765614638932,-499.0,0.00015874,2]
[398401772,1765614638941,-170.36,0.000159,2]
[398401773,1765614638951,-499.0,0.00015929,2]
[398401774,1765614638961,-499.0,0.00015984,2]
[398401775,1765614638971,-6843.86645507,0.00016009,2]
[398401776,1765614638980,-168.0,0.00016026,2]
[398401777,1765614638991,-3573.0,0.00016125,2]
[398401778,1765614639001,-1704.02,0.00016158,2]
[398401779,1765614639011,-3573.0,0.00016188,2]
[398401780,1765614639021,-6843.86645507,0.00016279,2]
[398401781,1765614639031,-155.83,0.0001641,2]
[398401782,1765614639041,-1878.5983,0.00016411,2]
[398401783,1765614639051,-193.33,0.00016413,2]
[398401784,1765614639061,-500.0,0.00016438,2]
[398401785,1765614639071,-500.0,0.00016438,2]
[398401786,1765614639080,-500.0,0.00016438,2]
[398401787,1765614639090,-500.0,0.00016438,2]
[398401788,1765614639099,-500.0,0.00016438,2]
[398401789,1765614639108,-500.0,0.00016438,2]
[398401790,1765614639119,-500.0,0.00016438,2]
[398401791,1765614639128,-500.0,0.00016438,2]
[398401792,1765614639138,-500.0,0.00016438,2]
[398401793,1765614639147,-500.0,0.00016438,2]
[398401794,1765614639157,-500.0,0.00016438,2]
[398401795,1765614639166,-500.0,0.00016438,2]
[398401796,1765614639176,-500.0,0.00016438,2]
[398401797,1765614639186,-504.37079755,0.00016438,2]
[398401798,1765614639196,-500.0,0.00016438,2]
[398401799,1765614639205,-500.0,0.00016438,2]
[398401800,1765614639215,-500.0,0.00016438,2]
[398401801,1765614639224,-500.0,0.00016438,2]
[398401802,1765614639234,-500.0,0.00016438,2]
[398401803,1765614639244,-500.0,0.00016438,2]
[398401804,1765614639254,-500.0,0.00016438,2]
[398401805,1765614639263,-500.0,0.00016438,2]
[398401806,1765614639273,-500.0,0.00016438,2]
[398401807,1765614639283,-500.0,0.00016438,2]
[398401808,1765614639293,-500.0,0.00016438,2]
[398401809,1765614639303,-500.0,0.00016438,2]
[398401810,1765614639312,-500.0,0.00016438,2]
[398401811,1765614639322,-500.0,0.00016438,2]
[398401812,1765614639331,-500.0,0.00016438,2]
[398401813,1765614639340,-500.0,0.00016438,2]
[398401814,1765614639350,-500.0,0.00016438,2]
[398401815,1765614639359,-500.0,0.00016438,2]
[398401816,1765614639370,-500.0,0.00016438,2]
[398401817,1765614639379,-500.0,0.00016438,2]
[398401818,1765614639389,-500.0,0.00016438,2]
[398401819,1765614639398,-500.0,0.00016438,2]
[398401820,1765614639409,-500.0,0.00016438,2]
[398401821,1765614639418,-500.0,0.00016438,2]
[398401822,1765614639427,-500.0,0.00016438,2]
[398401823,1765614639436,-500.0,0.00016438,2]
[398401824,1765614639445,-500.0,0.00016438,2]
[398401825,1765614639454,-500.0,0.00016438,2]
[398401826,1765614639464,-500.0,0.00016438,2]
[398401827,1765614639473,-500.0,0.00016438,2]
[398401828,1765614639484,-500.0,0.00016438,2]
[398401829,1765614639493,-570.1,0.00016438,2]
[398401830,1765614639502,-570.1,0.00016438,2]
[398401831,1765614639511,-570.1,0.00016438,2]
[398401832,1765614639520,-570.1,0.00016438,2]
[398401833,1765614639529,-5451.64,0.00016438,2]
[398401834,1765614639539,-552.96,0.00016438,2]
[398401835,1765614639900,-170.36,0.00016438,2]
[398401836,1765614639910,-552.96,0.00016438,2]
[398401837,1765614639920,-355.94,0.00016438,2]
[398401838,1765614639930,-188.88,0.00016476,2]
[398401839,1765614639939,-6843.86645507,0.00016549,2]
[398401840,1765614639948,-150.0,0.00016575,2]
[398401841,1765614639957,-150.0,0.00016575,2]
[398401842,1765614639967,-268.22068745,0.00016575,2]
[398401843,1765614639977,-150.0,0.00016575,2]
[398401844,1765614639988,-500.0,0.00016575,2]
[398401845,1765614639997,-4448.36542154,0.00016585,2]
[398401846,1765614640006,-3984.0886326,0.00016609,2]
[398401847,1765614640017,-384.0,0.00016629,2]
[398401848,1765614640026,-196.0,0.00016642,2]
[398401849,1765614640036,-252.55406266,0.00016712,2]
[398401850,1765614640045,-150.0,0.00016712,2]
[398401851,1765614640055,-150.0,0.00016712,2]
[398401852,1765614640065,-500.0,0.00016712,2]
[398401853,1765614640075,-3059.1474674,0.00016712,2]
[398401854,1765614640084,-2937.11819,0.0001673,2]
[398401855,1765614640094,-1958.07879,0.0001673,2]
[398401856,1765614640104,-500.0,0.0001675,2]
[398401857,1765614640114,-805.18524125,0.00016764,2]
[398401858,1765614640123,-6843.86645507,0.0001682,2]
[398401859,1765614640133,-300.0,0.00016823,2]
[398401860,1765614640143,-2588.1565228,0.00016825,2]
[398401861,1765614640152,-300.0,0.00016829,2]
[398401862,1765614640161,-200.0,0.00016849,2]
[398401863,1765614640171,-150.0,0.00016849,2]
[398401864,1765614640180,-500.0,0.00016849,2]
[398401865,1765614640190,-1958.0788,0.0001686,2]
[398401866,1765614640199,-184.52566928,0.00016865,2]
[398401867,1765614640209,-1030.1,0.0001689,2]
[398401868,1765614640219,-805.18524118,0.0001689,2]
[398401869,1765614640229,-570.1,0.00016899,2]
[398401870,1765614640239,-73946.6980492,0.000169,2]
[398401871,1765614640249,-9999.99,0.00016922,2]
[398401872,1765614640259,-1324.0,0.00016942,2]
[398401873,1765614640268,-1451.105,0.00016942,2]
[398401874,1765614640279,-2426.0,0.00016942,2]
[398401875,1765614640290,-420.0,0.00016952,2]
[398401876,1765614640299,-165.05782679,0.00016973,2]
[398401877,1765614640309,-501.34740605,0.00016973,2]
[398401878,1765614640319,-500.0,0.00016973,2]
[398401879,1765614640328,-500.0,0.00016973,2]
[398401880,1765614640337,-166.96872211,0.00016973,2]
[398401881,1765614640348,-500.0,0.00016973,2]
[398401882,1765614640358,-500.0,0.00016973,2]
[398401883,1765614640367,-223.83121583,0.00016973,2]
[398401884,1765614640377,-500.52668444,0.00016973,2]
[398401885,1765614640387,-500.0,0.00016973,2]
[398401886,1765614640396,-500.0,0.00016973,2]
[398401887,1765614640405,-500.0,0.00016973,2]
[398401888,1765614640415,-500.0,0.00016973,2]
[398401889,1765614640424,-500.0,0.00016973,2]
[398401890,1765614640434,-362.943865,0.00016973,2]
[398401891,1765614640443,-500.0,0.00016973,2]
[398401892,1765614640459,-500.0,0.00016973,2]
[398401893,1765614640469,-500.0,0.00016973,2]
[398401894,1765614640479,-500.40431242,0.00016973,2]
[398401895,1765614640491,-500.0,0.00016973,2]
[398401896,1765614640502,-500.26433138,0.00016973,2]
[398401897,1765614640511,-201.4427787,0.00016973,2]
[398401898,1765614640521,-500.0,0.00016973,2]
[398401899,1765614640531,-500.6273257,0.00016973,2]
[398401901,1765614640540,-500.0,0.00016973,2]
[398401902,1765614640550,-500.0,0.00016973,2]
[398401903,1765614640559,-168.44035917,0.00016973,2]
[398401904,1765614640568,-500.69569811,0.00016973,2]
[398401905,1765614640577,-500.0,0.00016973,2]
[398401906,1765614640586,-376.6677597,0.00016973,2]
[398401907,1765614640596,-500.0,0.00016973,2]
[398401908,1765614640604,-276.1948738,0.00016973,2]
[398401909,1765614640613,-500.60353783,0.00016973,2]
[398401910,1765614640622,-161.89218432,0.00016973,2]
[398401911,1765614640632,-500.0,0.00016973,2]
[398401912,1765614640645,-482.77559391,0.00016973,2]
[398401913,1765614640654,-500.0,0.00016973,2]
[398401914,1765614640664,-500.0,0.00016973,2]
[398401915,1765614640673,-165.64214933,0.00016973,2]
[398401916,1765614640682,-500.0,0.00016973,2]
[398401917,1765614640692,-151.0,0.00016973,2]
[398401918,1765614640701,-195.0,0.00016973,2]
[398401919,1765614640710,-250.0,0.00016973,2]
[398401920,1765614640720,-300.0,0.00016973,2]
[398401921,1765614640729,-300.0,0.00016973,2]
[398401922,1765614640738,-195.0,0.00016973,2]
[398401923,1765614640747,-300.0,0.00016973,2]
[398401924,1765614640756,-500.0,0.00016986,2]
[398401925,1765614640765,-778.44,0.00016986,2]
[398401927,1765614640775,-165.0,0.0001699,2]
[398401929,1765614640784,-167.24,0.0001699,2]
[398401931,1765614640793,-384.564331,0.0001699,2]
[398401932,1765614640802,-500.0,0.00016999,2]
[398401933,1765614640812,-500.0,0.00016999,2]
[398401934,1765614640821,-500.0,0.00016999,2]
[398401935,1765614640831,-500.0,0.00016999,2]
[398401936,1765614640840,-570.1,0.00016999,2]
[398401937,1765614640850,-570.1,0.00016999,2]
[398401938,1765614640860,-570.1,0.00016999,2]
[398401939,1765614640869,-3639.0,0.00017,2]
[398401940,1765614640879,-208325.55449882,0.00017,2]
[398401941,1765614640893,-1348.31298884,0.00017,2]
[398401942,1765614640904,-115841.34093434,0.00017,2]
[398401943,1765614640918,-457.11890551,0.00017,2]
[398401944,1765614640930,-1632.3679,0.00017,2]
[398401945,1765614640954,-380.13857633,0.00017,2]
[398401946,1765614640966,-382.33520524,0.00017,2]
[398401947,1765614640977,-66691.35277853,0.00017,2]
[398401948,1765614640988,-53507.58380998,0.00017,2]
[398401949,1765614640999,-2416.06200004,0.00017,2]
[398401950,1765614641010,-597.61849702,0.00017,2]
[398401951,1765614641022,-10999.09543311,0.00017,2]
[398401952,1765614641041,-104232.07206136,0.00017,2]
[398401953,1765614641277,-831.34206,0.00017,2]
[398401954,1765614641289,-913.53,0.00017,2]
[398401955,1765614641313,-717.61250113,0.00017,2]
[398401956,1765614641324,-357.4999999,0.00017,2]
[398401957,1765614641335,-1540.0,0.00017,2]
[398401958,1765614641346,-5954.92171685,0.00017,2]
[398401959,1765614642025,-1.7e-07,0.00017,2]
[398401964,1765614643105,-563.0,0.00016942,2]
[398401965,1765614643115,-2918.16016373,0.00017,2]
[398401966,1765614643164,-6253.60672997,0.00017,2]
[398401967,1765614643226,-1483.88912273,0.00017,2]
[398401968,1765614643237,-60781.24833322,0.00017,2]
[398401969,1765614643247,-81345.83918064,0.00017,2]
[398401970,1765614643287,-37588.2471838,0.00017,2]
[398401971,1765614643297,-300.0,0.00017016,2]
[398401972,1765614643307,-805.18524118,0.00017016,2]
[398401973,1765614643317,-1680.0,0.00017038,2]
[398401974,1765614643326,-150.0,0.00017056,2]
[398401975,1765614643336,-6843.86645507,0.0001709,2]
[398401976,1765614643346,-910.0,0.00017095,2]
[398401977,1765614643355,-1196.0,0.00017095,2]
[398401978,1765614643365,-1958.07879,0.0001711,2]
[398401979,1765614643374,-500.0,0.00017123,2]
[398401980,1765614643384,-805.18524118,0.00017143,2]
[398401981,1765614643394,-1030.1,0.00017164,2]
[398401982,1765614643403,-1283.15,0.00017174,2]
[398401983,1765614643413,-202.18247274,0.00017188,2]
[398401984,1765614643423,-196.0,0.00017212,2]
[398401985,1765614643433,-500.0,0.0001726,2]
[398401986,1765614643443,-778.44,0.0001726,2]
[398401987,1765614643453,-805.18524118,0.00017269,2]
[398401988,1765614643462,-196.0,0.00017272,2]
[398401989,1765614643473,-188.88,0.000173,2]
[398401990,1765614643483,-196.0,0.00017337,2]
[398401991,1765614643493,-6843.86645507,0.0001736,2]
[398401992,1765614643502,-1958.0788,0.0001736,2]
[398401993,1765614643512,-805.18524118,0.00017395,2]
[398401994,1765614643522,-500.0,0.00017397,2]
[398401995,1765614643531,-196.0,0.00017397,2]
[398401996,1765614643541,-1030.1,0.00017438,2]
[398401997,1765614643550,-196.0,0.00017466,2]
[398401998,1765614643560,-500.0,0.00017521,2]
[398401999,1765614643569,-1000.0,0.00017521,2]
[398402000,1765614643579,-1000.0,0.00017521,2]
[398402001,1765614643588,-1000.0,0.00017521,2]
[398402002,1765614643598,-500.0,0.00017521,2]
[398402003,1765614643610,-1000.0,0.00017521,2]
[398402004,1765614643619,-1000.0,0.00017521,2]
[398402005,1765614643629,-1003.38309233,0.00017521,2]
[398402006,1765614643639,-1000.0,0.00017521,2]
[398402007,1765614643656,-334.94217321,0.00017521,2]
[398402008,1765614643666,-1000.0,0.00017521,2]
[398402009,1765614643675,-626.20728409,0.00017521,2]
[398402010,1765614643686,-862.4942364,0.00017521,2]
[398402011,1765614643695,-805.18524118,0.00017521,2]
[398402012,1765614643704,-410.0,0.0001753,2]
[398402013,1765614643714,-500.0,0.00017534,2]
[398402014,1765614643724,-1784.313,0.00017534,2]
[398402015,1765614643735,-778.44,0.00017534,2]
[398402016,1765614643744,-1000.0,0.00017576,2]
[398402017,1765614643754,-1958.0788,0.0001761,2]
[398402018,1765614643763,-6843.86645507,0.0001763,2]
[398402019,1765614643773,-5094.90825952,0.0001764,2]
[398402020,1765614643783,-168.0,0.00017647,2]
[398402021,1765614643792,-805.18524118,0.00017648,2]
[398402022,1765614643802,-500.0,0.00017671,2]
[398402023,1765614643812,-1030.1,0.00017712,2]
[398402024,1765614643822,-805.18524118,0.00017774,2]
[398402025,1765614643831,-196.0,0.00017794,2]
[398402026,1765614643841,-237.85999049,0.00017808,2]
[398402027,1765614643851,-150.0,0.00017808,2]
[398402028,1765614643861,-778.44,0.00017808,2]
[398402029,1765614643870,-1022.06,0.00017838,2]
[398402030,1765614643881,-410.0,0.00017856,2]
[398402031,1765614643895,-1958.07879,0.0001786,2]
[398402032,1765614643906,-184.52566928,0.000179,2]
[398402033,1765614643915,-448.92985599,0.000179,2]
[398402034,1765614643925,-1952.74112458,0.000179,2]
[398402035,1765614643935,-6843.86645507,0.000179,2]
[398402036,1765614643944,-805.18524118,0.000179,2]
[398402037,1765614643955,-196.0,0.0001792,2]
[398402038,1765614643965,-151.0,0.00017937,2]
[398402039,1765614643975,-500.0,0.00017973,2]
[398402040,1765614643984,-500.0,0.00017973,2]
[398402041,1765614643994,-500.0,0.00017973,2]
[398402042,1765614644004,-500.0,0.00017973,2]
[398402043,1765614644013,-500.0,0.00017973,2]
[398402044,1765614644023,-500.0,0.00017973,2]
[398402045,1765614644033,-500.0,0.00017973,2]
[398402046,1765614644043,-500.0,0.00017973,2]
[398402047,1765614644053,-500.0,0.00017973,2]
[398402048,1765614644063,-500.0,0.00017973,2]
[398402049,1765614644072,-172.47103648,0.00017973,2]
[398402050,1765614644083,-500.0,0.00017973,2]
[398402051,1765614644096,-500.0,0.00017973,2]
[398402052,1765614644106,-547.73818743,0.00017973,2]
[398402053,1765614644116,-501.64705839,0.00017973,2]
[398402054,1765614644126,-500.0,0.00017973,2]
[398402055,1765614644136,-500.0,0.00017973,2]
[398402056,1765614644145,-500.0,0.00017973,2]
[398402057,1765614644156,-500.0,0.00017973,2]
[398402058,1765614644166,-500.0,0.00017973,2]
[398402059,1765614644175,-473.87301488,0.00017973,2]
[398402060,1765614644185,-509.27753125,0.00017973,2]
[398402061,1765614644195,-500.0,0.00017973,2]
[398402062,1765614644204,-500.0,0.00017973,2]
[398402063,1765614644215,-500.0,0.00017973,2]
[398402064,1765614644224,-500.0,0.00017973,2]
[398402065,1765614644234,-500.0,0.00017973,2]
[398402066,1765614644245,-375.9017617,0.00017973,2]
[398402067,1765614644255,-500.0,0.00017973,2]
[398402068,1765614644264,-500.0,0.00017973,2]
[398402069,1765614644275,-500.0,0.00017973,2]
[398402070,1765614644284,-500.0,0.00017973,2]
[398402071,1765614644297,-500.0,0.00017973,2]
[398402072,1765614644307,-500.0,0.00017973,2]
[398402073,1765614644317,-500.0,0.00017973,2]
[398402074,1765614644327,-500.0,0.00017973,2]
[398402075,1765614644337,-500.0,0.00017973,2]
[398402076,1765614644347,-500.0,0.00017973,2]
[398402077,1765614644359,-1030.1,0.00017986,2]
[398402078,1765614644369,-384.564331,0.0001799,2]
[398402079,1765614644378,-384.564331,0.0001799,2]
[398402080,1765614644388,-500.0,0.00017999,2]
[398402081,1765614644398,-510.44756015,0.00017999,2]
[398402082,1765614644407,-570.1,0.00017999,2]
[398402083,1765614644418,-570.1,0.00017999,2]
[398402084,1765614644427,-570.1,0.00017999,2]
[398402085,1765614644438,-570.1,0.00017999,2]
[398402086,1765614644448,-570.1,0.00017999,2]
[398402087,1765614644769,-570.1,0.00017999,2]
[398402088,1765614644781,-570.1,0.00017999,2]
[398402089,1765614644791,-570.1,0.00017999,2]
[398402090,1765614644801,-570.1,0.00017999,2]
[398402091,1765614644811,-570.1,0.00017999,2]
[398402092,1765614644820,-570.1,0.00017999,2]
[398402093,1765614644830,-570.1,0.00017999,2]
[398402094,1765614644840,-570.1,0.00017999,2]
[398402095,1765614644850,-570.1,0.00017999,2]
[398402096,1765614644860,-570.1,0.00017999,2]
[398402097,1765614644869,-570.16477574,0.00017999,2]
[398402098,1765614644879,-422208.92361046,0.00018,2]
[398402099,1765614646152,-217.62857709,0.00015429,2]
[398402100,1765614646163,-1022.25146876,0.0001764,2]
[398402101,1765614646173,-102.2427378,0.00018,2]
[398402102,1765614646375,-3149.52,0.00018,2]
[398402152,1765615731619,370.43,0.00013699,2]
[398402159,1765615832230,-462.91615925,0.00015629,2]
[398402160,1765615832283,-37.08384075,0.00015629,2]
[398402161,1765615832292,-280.0,0.00015629,2]
[398402162,1765615832302,-217.6285771,0.00016044,2]
[398402163,1765615832312,-163.44275164,0.00016143,2]
[398402164,1765615832323,-36.55724836,0.00016143,2]
[398402165,1765615832334,-207.4,0.00016143,2]
[398402166,1765615832344,-215.0738,0.00016143,2]
[398402167,1765615832353,-328.93435403,0.00016143,2]
[398402168,1765615832363,-136.07168692,0.000162,2]
[398402169,1765615832392,-13.92831308,0.000162,2]
[398402170,1765615832402,-1000.0,0.00016247,2]
[398402171,1765615832411,-150.0,0.00016336,2]
[398402172,1765615832420,-170.36,0.00016438,2]
[398402173,1765615832430,-170.36,0.000165,2]
[398402174,1765615832440,-253.62,0.00016711,2]
[398402176,1765615832450,-304.06693998,0.00016811,2]
[398402178,1765615832459,-1200.0,0.00016836,2]
[398402180,1765615832469,-300.0,0.0001691,2]
[398402182,1765615832478,-300.0,0.0001691,2]
[398402184,1765615832487,-300.0,0.00016911,2]
[398402186,1765615832496,-499.0,0.00016911,2]
[398402188,1765615832505,-411.0,0.00016911,2]
[398402190,1765615832514,-152.71892722,0.00016911,2]
[398402192,1765615832524,-300.0,0.00016911,2]
[398402194,1765615832533,-8345.8,0.00016912,2]
[398402196,1765615832542,-151.0,0.00016912,2]
[398402198,1765615832551,-151.0,0.00016912,2]
[398402200,1765615832560,-151.0,0.00016912,2]
[398402202,1765615832570,-151.0,0.00016912,2]
[398402204,1765615832579,-151.0,0.00016912,2]
[398402206,1765615832589,-151.0,0.00016912,2]
[398402208,1765615832598,-151.0,0.00016912,2]
[398402210,1765615832608,-151.0,0.00016912,2]
[398402212,1765615832617,-151.0,0.00016912,2]
[398402213,1765615832627,-250.0,0.00016912,2]
[398402214,1765615832636,-250.0,0.00016912,2]
[398402215,1765615832646,-262.64147275,0.00016912,2]
[398402216,1765615832655,-167.09,0.00016914,2]
[398402217,1765615832664,-500.0,0.0001692,2]
[398402218,1765615832674,-500.0,0.0001692,2]
[398402219,1765615832684,-500.0,0.0001692,2]
[398402220,1765615832694,-500.0,0.0001692,2]
[398402221,1765615832706,-195.38320398,0.0001692,2]
[398402222,1765615832717,-500.0,0.0001692,2]
[398402223,1765615832726,-500.0,0.0001692,2]
[398402224,1765615832736,-500.0,0.0001692,2]
[398402225,1765615832745,-500.0,0.0001692,2]
[398402226,1765615832755,-500.0,0.0001692,2]
[398402227,1765615832764,-264.1886854,0.0001692,2]
[398402228,1765615832773,-500.0,0.0001692,2]
[398402229,1765615832782,-500.0,0.0001692,2]
[398402230,1765615832791,-500.0,0.0001692,2]
[398402231,1765615832800,-500.0,0.0001692,2]
[398402232,1765615832809,-250.43707975,0.0001692,2]
[398402233,1765615832820,-500.0,0.0001692,2]
[398402234,1765615832829,-500.0,0.0001692,2]
[398402235,1765615832839,-500.0,0.0001692,2]
[398402236,1765615832849,-500.0,0.0001692,2]
[398402237,1765615832858,-500.0,0.0001692,2]
[398402238,1765615832868,-500.0,0.0001692,2]
[398402239,1765615832877,-500.0,0.0001692,2]
[398402240,1765615832887,-500.0,0.0001692,2]
[398402241,1765615832896,-500.0,0.0001692,2]
[398402242,1765615832906,-500.0,0.0001692,2]
[398402243,1765615832926,-580.84613622,0.0001692,2]
[398402244,1765615832936,-500.0,0.0001692,2]
[398402245,1765615832946,-515.05,0.0001692,2]
[398402246,1765615832955,-1427.45,0.00016921,2]
[398402247,1765615832966,-2999.99,0.00016921,2]
[398402248,1765615832976,-12047.46,0.00016921,2]
[398402249,1765615832985,-1711.43,0.00016921,2]
[398402250,1765615832994,-13918.49,0.00016921,2]
[398402251,1765615833004,-1200.91720549,0.00016921,2]
[398402252,1765615833017,-8799.07279451,0.00016921,2]
[398402253,1765615833027,-500.0,0.00016973,2]
[398402254,1765615833037,-282.11143422,0.00016973,2]
[398402255,1765615833046,-500.0,0.00016973,2]
[398402256,1765615833056,-500.0,0.00016973,2]
[398402257,1765615833066,-500.0,0.00016973,2]
[398402258,1765615833076,-504.48723709,0.00016973,2]
[398402259,1765615833085,-500.0,0.00016973,2]
[398402260,1765615833096,-200.0,0.00016983,2]
[398402261,1765615833106,-648.7,0.00016986,2]
[398402262,1765615833116,-466.09,0.00016986,2]
[398402263,1765615833127,-250.0,0.00017,2]
[398402264,1765615833137,-1000.0,0.00017,2]
[398402265,1765615833147,-154.66,0.00017078,2]
[398402266,1765615833158,-164.53,0.00017083,2]
[398402267,1765615833167,-300.0,0.00017192,2]
[398402268,1765615833179,-300.0,0.00017192,2]
[398402269,1765615833189,-300.0,0.00017192,2]
[398402270,1765615833198,-397.5755571,0.00017192,2]
[398402271,1765615833209,-515.05,0.00017194,2]
[398402272,1765615833218,-1324.0,0.00017195,2]
[398402273,1765615833228,-1261.0,0.00017195,2]
[398402274,1765615833238,-642.0,0.00017195,2]
[398402275,1765615833248,-267.317,0.00017195,2]
[398402276,1765615833258,-1196.0,0.00017195,2]
[398402277,1765615833268,-3982.20883534,0.00017195,2]
[398402292,1765615838215,-2537.79116466,0.00017195,2]
[398402293,1765615838225,-2426.0,0.00017195,2]
[398402294,1765615838234,-237.064,0.00017195,2]